Cogmind - Beta 12 @@@ ROGUE MODE // 2023.11.21 @ 02:49:12 Player: OldAgeTron Result: Destroyed by G-34 Mercenary with Small Laser Performance ------------- Evolutions (1) 500 Regions Visited (3) 600 Robots Destroyed (32) 160 Value Destroyed (441) 441 Prototype IDs (2) 40 Alien Tech Used (0) 0 Bonus (-21) -21 TOTAL SCORE: 1720 Bonus ------- Friendly Fire -21 Cogmind --------- Core Integrity 0/400 Matter 281/300 Energy 42/100 System Corruption 0% Temperature Cool (15) Movement Core (200) Ox3 Location -9/Materials Parts ------- > --- POWER (1) -------- (None) > --- PROPULSION (2) --- (None) > --- UTILITY (4) ------ Medium Storage Unit Advanced Visual Processing Unit > --- WEAPON (2) ------- (None) > --- INVENTORY (10) --- Structural Scanner Experimental Sensor Array Improved Terrain Scan Processor Blade Trap Blade Trap Blade Trap Peak State ------------ > --- POWER ------------ Improved Ion Engine > --- PROPULSION ------- Wheel Compact Wheel > --- UTILITY ---------- Medium Storage Unit Advanced Visual Processing Unit Utility Shielding Improved Light Armor Plating > --- WEAPON ----------- Particle Cannon High-powered Shotgun > --- INVENTORY -------- Improved Ion Engine Structural Scanner Experimental Sensor Array Improved Terrain Scan Processor Hardlight Generator EM Pulse Gun Blade Trap Blade Trap Blade Trap [Rating: 19] Favorites ----------- Power Improved Ion Engine Engine Improved Ion Engine Propulsion Wheel Wheel Wheel Hover Unit Improved Hover Unit Utility Utility Shielding Device Field Recycling Unit Storage Medium Storage Unit Processor Advanced Visual Processing Unit Protection Utility Shielding Weapon Small Laser Energy Gun Small Laser Energy Cannon Particle Cannon Ballistic Gun High-powered Shotgun Special Weapon Mining Laser Build | -11 -10 -10 -9 ------- Run | Jun Mat Min Mat Slots Evolved 2 | . . . 2 Power . | . . . . Propulsion . | . . . . Utility 2 | . . . 2 Weapon . | . . . . Parts Attached 32 | 6 11 7 8 Power 5 | 1 3 . 1 Engine 5 | 1 3 . 1 Core . | . . . . Reactor . | . . . . Propulsion 12 | 2 4 4 2 Treads . | . . . . Leg . | . . . . Wheel 11 | 2 4 4 1 Hover 1 | . . . 1 Flight . | . . . . Utility 7 | 1 3 . 3 Device 2 | . 1 . 1 Storage 2 | 1 1 . . Processor 1 | . . . 1 Hackware . | . . . . Protection 2 | . 1 . 1 Artifact . | . . . . Weapon 8 | 2 1 3 2 Energy Gun 5 | 2 1 1 1 Energy Cannon 1 | . . . 1 Ballistic Gun 1 | . . 1 . Ballistic Cannon . | . . . . Launcher . | . . . . Special Weapon 1 | . . 1 . Impact Weapon . | . . . . Slashing Weapon . | . . . . Piercing Weapon . | . . . . Special Melee Weapon . | . . . . Unidentified Prototypes . | . . . . Parts Lost 15 | . 1 2 12 Power 3 | . 1 . 2 Propulsion 5 | . . 1 4 Utility 3 | . . . 3 Weapon 4 | . . 1 3 Highest Loss Streak 5 | . 1 1 5 To Critical Strikes . | . . . . Average Slot Usage (%) 97 | . 99 99 80 Engine 13 | . 13 14 9 Wheel 25 | . 28 27 12 Device 3 | . 8 . 2 Storage 13 | . 14 14 11 Processor 1 | . . . 11 Protection 10 | . 5 14 15 Energy Gun 21 | . 28 21 2 Ballistic Gun 1 | . . . 8 Special Weapon 2 | . . 6 . Naked Turns . | . . . . Heaviest Build 28 | 10 20 23 28 Greatest Support 32 | 32 32 26 26 Greatest Overweight (x) 8 | . . 2 8 Average Overweight (x) . | . . . 1 Largest Inventory Capacity 10 | 8 10 10 10 Average Capacity 9 | 6 8 10 10 Most Carried 10 | 5 10 10 10 Average Carried 8 | 1 6 9 7 Final Capacity 10 | 8 10 10 10 Final Carried 10 | 1 10 9 6 Class Distribution -------------------- 97% | Mutant Dominant Class ---------------- Mutant | -10/Materials Mutant | -10/Mines Mutant | -9/Materials Resources | -11 -10 -10 -9 ----------- Run | Jun Mat Min Mat Matter Collected 400 | 222 102 65 11 Remotely . | . . . . Salvage Created 818 | . 418 306 94 Parts 77 | . 38 22 17 Haulers Intercepted 1 | . 1 . . Recyclers Shooed 1 | . . 1 . Parts Field Recycled 6 | . 6 . . Retrieved Matter 46 | . 46 . . Parts Self-Destructed . | . . . . Prevented . | . . . . Kills | -11 -10 -10 -9 ------- Run | Jun Mat Min Mat Combat Hostiles Destroyed 18 | . 12 5 1 Guns 15 | . 12 3 . AOE 3 | . . 2 1 Classes Destroyed 8 | . 6 2 . Worker 5 | . 3 2 . Builder 3 | . 1 . 2 Tunneler 2 | . . 2 . Hauler 1 | . 1 . . Recycler 1 | . . 1 . Watcher 2 | . 1 . 1 Swarmer 12 | . 9 3 . Grunt 6 | . 3 2 1 Best Kill Streak 4 | . 3 4 2 Combat Bots Only 3 | . 3 3 1 Max Kills in Single Turn 2 | . 1 2 2 Gunslinging . | . . . . Exploded 2 | . . 2 1 Melee . | . . . . Uniques/NPCs Destroyed . | . . . . Combat | -11 -10 -10 -9 -------- Run | Jun Mat Min Mat Damage Taken 2009 | . 298 352 1359 Core 621 | . 83 128 410 Absorbed by Shields 92 | . . . 92 Redirected to Shielding 50 | . 2 5 43 Core Remaining (%) 57 | 100 . 15 . Volleys Fired 96 | . 37 39 20 Largest 2 | . 2 2 1 Hottest 100 | . 80 100 68 Shots Fired 156 | . 74 62 20 Gun 127 | . 74 47 6 Cannon 14 | . . . 14 Launcher . | . . . . Special 15 | . . 15 . Kinetic . | . . . . Thermal 149 | . 74 61 14 Explosive . | . . . . Electromagnetic 7 | . . 1 6 Robot Hit Streak 9 | . 6 9 6 Robot Miss Streak 4 | . 2 2 4 Penetration Max . | . . . . Secondary Targets 3 | . 1 2 . Max Gunslinging Chain 1 | . 1 1 . Shots Hit Robots 80 | . 41 29 10 Core Hits 42 | . 23 12 7 Critical Kills . | . . . . Critical Parts Destroyed . | . . . . Critical Strikes . | . . . . Melee Attacks . | . . . . Impact . | . . . . Slashing . | . . . . Piercing . | . . . . Sneak Attacks . | . . . . Combat Hostiles . | . . . . Follow-up Attacks . | . . . . Damage Inflicted 1252 | . 470 442 340 Guns 849 | . 460 315 74 Cannons 102 | . . . 102 Explosions 291 | . . 127 164 Melee . | . . . . Ramming 10 | . 10 . . Kinetic . | . . . . Thermal 1153 | . 460 427 266 Explosive . | . . . . Electromagnetic 89 | . . 15 74 Impact . | . . . . Slashing . | . . . . Piercing . | . . . . Highest Corruption 1 | . . 1 . Average Corruption 1 | . . 1 . Corruption Purged . | . . . . Corruption Blocked . | . . . . Effects 2 | . . 2 . Message Errors 1 | . . 1 . Matter Fused 1 | . . 1 . Overload Shots . | . . . . Overflow Damage . | . . . . Projectiles . | . . . . Explosions . | . . . . Melee . | . . . . Knockbacks . | . . . . Impact . | . . . . Kinetic . | . . . . Secondary . | . . . . Self-Inflicted Damage 86 | . 5 25 56 Shots 2 | . . 1 1 Rammed 1 | . 1 . . Targets Rammed 1 | . 1 . . Kicked . | . . . . Crushed . | . . . . Highest Temperature 180 | . 180 107 166 Average Temperature 46 | . 52 33 63 Received Heat Transfer 569 | . 60 6 503 Siege Activations . | . . . . Robots Corrupted . | . . . . Combat Hostiles . | . . . . Parts Fried . | . . . . Impact Corruptions . | . . . . Robots Melted . | . . . . Combat Hostiles . | . . . . Parts Melted 1 | . . 1 . Heat Transferred 2260 | . 1025 850 385 Parts Sabotaged . | . . . . Parts Stolen . | . . . . Parts Stripped . | . . . . Power Chain Reactions 2 | . . 1 1 Missiles Intercepted . | . . . . Alert | -11 -10 -10 -9 ------- Run | Jun Mat Min Mat Peak Influence 257 | . 257 240 59 Initial 100 | . . 100 37 Average 116 | . 110 151 34 Maximum Alert Level 1 | . 1 1 . Low Security (%) 81 | 100 82 74 100 Level 1 18 | . 17 25 . Level 2 . | . . . . Level 3 . | . . . . Level 4 . | . . . . Level 5 . | . . . . High Security . | . . . . Max Security . | . . . . Squads Dispatched 4 | . 3 1 . Investigation 1 | . . 1 . Extermination . | . . . . Reinforcement 3 | . 3 . . Assault . | . . . . Garrison . | . . . . Intercept . | . . . . Searches Triggered . | . . . . Construction Impeded . | . . . . Haulers Reinforced . | . . . . Active Scanning Responses . | . . . . Cargo Convoy Interrupts . | . . . . Stealth | -11 -10 -10 -9 --------- Run | Jun Mat Min Mat Distress Signals 4 | . 1 . 3 Communications Jammed . | . . . . Distress Signals . | . . . . Times Spotted 49 | . 22 8 19 Peak Tracking Total 16 | . 5 3 16 Tactical Retreats 5 | . 2 1 2 Traps | -11 -10 -10 -9 ------- Run | Jun Mat Min Mat Traps Triggered 1 | . . . 1 Indirectly . | . . . . Trap Hack Attempts . | . . . . Triggered . | . . . . Disarmed . | . . . . Reprogrammed . | . . . . Reused . | . . . . Traps Extracted . | . . . . Installed . | . . . . Triggered . | . . . . Most Traps Carried 3 | . . 3 3 Machines | -11 -10 -10 -9 ---------- Run | Jun Mat Min Mat Machines Disabled 3 | . . 1 2 Max in Single Turn 1 | . . . 1 Machines Repaired . | . . . . Machines Sabotaged . | . . . . Overloaded Fab Kills . | . . . . Hacking | -11 -10 -10 -9 --------- Run | Jun Mat Min Mat Machines Accessed 5 | . 3 2 . Terminals 3 | . 3 . . Fabricators . | . . . . Repair Stations . | . . . . Recycling Units . | . . . . Scanalyzers . | . . . . Garrison Access . | . . . . Total Hacks 9 | . 7 2 . Successful 7 | . 5 2 . Failed 2 | . 2 . . Catastrophic . | . . . . Database Lockouts . | . . . . Manual . | . . . . Terminals 7 | . 7 . . Fabricators . | . . . . Repair Stations . | . . . . Recycling Units . | . . . . Scanalyzers . | . . . . Garrison Access . | . . . . Terminal Hacks 7 | . 5 2 . Prototype ID Bank 1 | . 1 . . Open Door 2 | . . 2 . Locate Traps 1 | . 1 . . Surveillance Status 1 | . 1 . . Transport Status 1 | . 1 . . Hauler Manifests 1 | . 1 . . Fabricator Hacks . | . . . . Repair Station Hacks . | . . . . Recycling Unit Hacks . | . . . . Scanalyzer . | . . . . Garrison Access Hacks . | . . . . Unauthorized Hacks . | . . . . Terminals . | . . . . Fabricators . | . . . . Repair Stations . | . . . . Recycling Units . | . . . . Scanalyzers . | . . . . Garrison Access . | . . . . Data Cores Recovered . | . . . . Used . | . . . . Hacking Detections 1 | . 1 . . Full Trace Events . | . . . . Feedback Events . | . . . . Feedback Blocked . | . . . . Robot Schematics Acquired . | . . . . Robots Built . | . . . . Authchips . | . . . . Time . | . . . . Total Robot Build Rating . | . . . . Part Schematics Acquired . | . . . . Parts Built . | . . . . Authchips . | . . . . Time . | . . . . Total Part Build Rating . | . . . . Parts Repaired . | . . . . Time . | . . . . Parts Recycled . | . . . . Recycled Matter . | . . . . Retrieved Matter . | . . . . Retrieved Components . | . . . . Parts Scanalyzed . | . . . . Part Schematics Acquired . | . . . . Parts Damaged . | . . . . Bothacking | -11 -10 -10 -9 ------------ Run | Jun Mat Min Mat Used RIF Installer . | . . . . Robots Hacked . | . . . . Non-combat . | . . . . Combat . | . . . . Robot Hacks Applied . | . . . . Relay Couplers Released . | . . . . Fabnet Peak Effective % . | . . . . Robots Rewired . | . . . . Allies Hacked . | . . . . Hacks Repelled . | . . . . Allies | -11 -10 -10 -9 -------- Run | Jun Mat Min Mat Total Allies 1 | . . 1 . Largest Group 1 | . . 1 . Highest-Rated Group 31 | . . 31 . Highest-Rated Ally 31 | . . 31 . Total Orders . | . . . . Ally Attacks 4 | . . 4 . Total Damage 42 | . . 42 . Kills . | . . . . Allies Corrupted . | . . . . Allies Melted . | . . . . Intel | -11 -10 -10 -9 ------- Run | Jun Mat Min Mat Robot Analysis Total . | . . . . Derelict Logs Recovered 1 | . . 1 . Drone Launches . | . . . . Drone Recoveries . | . . . . Exploration | -11 -10 -10 -9 ------------- Run | Jun Mat Min Mat Turns Passed 1676 | 43 703 736 194 Spaces Moved 1224 | 41 489 600 94 Core 26 | 19 . . 7 Treads . | . . . . Legs . | . . . . Wheels 1195 | 22 489 600 84 Hover 3 | . . . 3 Flight . | . . . . Fastest Speed 50 | 50 80 80 90 Average Speed 91 | 76 92 86 119 Slowest Speed 450 | 100 100 110 450 Overloaded Moves . | . . . . Propulsion Burnouts . | . . . . Robots Hopped . | . . . . Cave-ins Triggered 1 | . . 1 . Exploration Rate (%) 44 | 4 69 95 10 Regions Visited 3 Branch Regions 1 Pre-discovered Areas 1 | . . 1 . Known Exits Taken . | . . . . Unknown Exits Taken 3 | 1 1 1 . Scrap Searched 1 | . . 1 . Spaces Dug 13 | . . 13 . Terrain Destroyed 23 | . . 18 5 Melee . | . . . . Projectile 14 | . . 14 . AOE 9 | . . 4 5 Terrain Rammed . | . . . . Walls Destroyed . | . . . . Machines Disabled . | . . . . Actions | -11 -10 -10 -9 --------- Run | Jun Mat Min Mat Total 1604 | 52 666 730 156 Wait 197 | . 102 65 30 Move 1220 | 40 488 598 94 Hop . | . . . . Pick Up 36 | 6 17 9 4 Fast Attach 2 | 1 . 1 . Attach 15 | 5 2 1 7 Detach . | . . . . Swap 15 | . 9 5 1 Drop 21 | . 10 11 . Fire 96 | . 37 39 20 Melee . | . . . . Ram 1 | . 1 . . Kick . | . . . . Crush . | . . . . Escape Stasis 1 | . . 1 . Rewire . | . . . . Trap . | . . . . Miscellaneous . | . . . . Route ------- -11/Junkyard -10/Materials (discovered 3 exits: [*Mat] / *Min x2) -10/Mines (discovered 2 exits: [*Mat x2]) -9/Materials History --------- Turn | Location | Event 4 | -11/Junkyard | Discovered new exit (range 16) 44 | -11/Junkyard | Entered Materials 318 | -10/Materials | Build established: Mutant 400 | -10/Materials | Discovered new exit (range 8) 446 | -10/Materials | Discovered new exit (range 12) 703 | -10/Materials | Discovered new exit (range 11) 747 | -10/Materials | Entered Mines 756 | -10/Mines | Met a Derelict bent on vengeance 798 | -10/Mines | Learned location of Zion (-7) 817 | -10/Mines | Found a hidden stash of uninstalled traps 953 | -10/Mines | Discovered new exit (range 6) 1117 | -10/Mines | Received a Mining Laser from a helpful Derelict 1288 | -10/Mines | Crushed by falling debris 1289 | -10/Mines | Core integrity fell below 50% 1289 | -10/Mines | Core integrity fell below 20% 1306 | -10/Mines | Met a Derelict shopkeep closing up shop 1348 | -10/Mines | Found a damaged Exp. Sensor Array with a note attached 1350 | -10/Mines | Found Prototype Device 1434 | -10/Mines | Discovered new exit (range 8) 1451 | -10/Mines | Met a Derelict who couldn't figure out how to use a Trap Extractor 1483 | -10/Mines | Entered Materials 1483 | -9/Materials | Evolved 2 slots: Utility x2 1656 | -9/Materials | Lost 5 parts (1p2n2w) 1664 | -9/Materials | Core integrity fell below 50% 1673 | -9/Materials | Core integrity fell below 20% 1677 | -9/Materials | Destroyed by G-34 Mercenary with Small Laser Last Messages --------------- 01596_ Com. Wheel destroyed. 01601_ Critical hit (Burn: +37). 01614_ W-16 Scout sends out distress signal. 01615_ Wheel destroyed. 01620_ Imp. Ion Engine destroyed. 01623_ Particle Cannon destroyed. 01625_ Hpw. Shotgun destroyed. 01649_ G-47 Trooper IFF system glitched. 01651_ Critical hit (Burn: +28). 01659_ Chain reaction triggered in Lgt. Nuclear Core. 01659_ EM Pulse Gun destroyed. 01659_ Destroyed EM Pulse Gun. 01663_ Imp. Ion Engine destroyed. 01663_ Critical hit (Burn: +28). 01669_ Utility Shielding destroyed. 01669_ S-10 Pest IFF system glitched. 01669_ S-10 Pest destroyed. 01670_ Hardlight Generator destroyed. 01671_ Acquired Imp. Hover Unit. 01677_ Imp. Hover Unit destroyed. Map ----- +----------------------------------------------------+ | ??????????# #?????????????????????????????? | | ??????????# """ #?????????????????????????????? | | ??????????# """ #?????????????????????????????? | | ??????????# """ #?????????????????????????????? | | ??????????# #?????????????????????????????? | | ??????????# """ #?????????????????????????????? | | ??????????# """ #?????????????????????????????? | | ??????????# """ ##########????????????????????? | | ??????????# # //#????????????????????? | | ??#############+# # //#????????????????????? | | ??# //#????????????????????? | | ??# //#????????????????????? | | ??# !!#????###########?????? | | ??############ ! #????# #?????? | | ?????????????# = % # #######! ! #?????? | | ?????????????# %! ##### # #?????? | | ?????????????# ! * # #?????? | | ?????????????#! %* !|! " """ """ #?????? | | ?????????????# ############ # "" """ #?????? | | ?????????????# #????????#### ## " #?????? | | ?????????????# #????##### ## ## #?????? | | ?????????????# #????# ]# ############?????? | | ?????????????# #????# # #????????????????? | | ?????????????# #????# s # #????????????????? | | ?????????????# #????#!!!gs #!%#????????????????? | | ?????????????# #????#!!@ ggg%*########?????????? | | ?????????????# #????#!!!sY g*= #?????? | | ?????????????# #????#####;gg #?????? | | ?????????????# ???????? ;## #?????? | | ?????????????? ??????? ######## #?????? | | ?????????????? ?????? #????????? #?????? | | ?????????????? ??????? ######????????????????? | | ???????????????????????####??????????????????????? | | ?????????????????????????????????????????????????? | | ?????????????????????????????????????????????????? | | ?????????????????????????????????????????????????? | | ?????????????????????????????????????????????????? | | ?????????????????????????????????????????????????? | | ?????????????????????????????????????????????????? | | ?????????????????????????????????????????????????? | | ?????????????????????????????????????????????????? | | ?????????????????????????????????????????????????? | | ?????????????????????????????????????????????????? | | ?????????????????????????????????????????????????? | | ?????????????????????????????????????????????????? | | ?????????????????????????????????????????????????? | | ?????????????????????????????????????????????????? | | ?????????????????????????????????????????????????? | | ?????????????????????????????????????????????????? | | ?????????????????????????????????????????????????? | +----------------------------------------------------+ Best States ------------- Heat Dissipation 28 Energy Generation 12 Energy Capacity 265 Matter Stores 300 Matter Capacity 300 Sight Range 20 Terrain Scan Density 10 Armor Coverage 150 Utility Shielding 33 Evasion (%) 50 Item Schematics ----------------- None Robot Schematics ------------------ None Fabricated ------------ Nothing Alien Tech Used ----------------- None Achievements -------------- Shopping List Challenges ------------ None Game ------ Seed MolecularGravitonArchive Manual? 0 Play Time 00:40:04 Cumulative 10.9 hours Start 2023.11.21 @ 02:07:09 End 2023.11.21 @ 02:49:12 Sessions 1 Manual Loads 0 Difficulty Rogue Special Mode None Game No. 7 Rogue 7 Adventurer 0 Explorer 0 Win Type - Total 0 Types 0/0/0/0/0/0/0/0/0 Lore% 12 Gallery% 13 Achievement% 12 Wizard Run 0 Options --------- ASCII 0 Keyboard 0 Movement Mouse Keybinds 0 Fullscreen 1 Font 18/TerminusBold Map View 76x50 Tactical HUD 1 Map Filters NONE Filters NONE Steam 1 RUN: cb461a4b-42a6-4f07-a552-9aba8d060d9d